bitfinex/quotes_ETHUSD_20250106
["timestamp","ask_amount","ask_price","bid_price","bid_amount"]
[1736139957653,2.44811,3676.3,3675.6,0.09505177]
[1736139957823,2.44819,3676.2,3675.6,0.09505177]
[1736139958162,2.44819,3676.2,3675.3,35.0]
[1736139958665,2.44819,3676.2,3675.4,0.09512664]
[1736139959764,2.44819,3676.2,3675.2,0.8087]
[1736139959907,2.44819,3676.2,3675.5,0.0950892]
[1736139960108,2.44819,3676.2,3675.2,0.8087]
[1736139960310,2.44819,3676.2,3675.3,0.09516408]
[1736139960661,2.44819,3676.2,3675.4,0.7609]
[1736139960814,2.44804,3676.4,3675.4,0.7609]
[1736139961162,1.94871343,3676.7,3675.6,0.7885]
[1736139961310,2.44793,3676.6,3675.6,0.7885]
[1736139961510,2.44793,3676.6,3675.7,0.09459143]
[1736139961741,2.44793,3676.6,3675.8,0.7885]
[1736139962116,2.44793,3676.6,3675.9,0.09450795]
[1736139963510,2.44778,3676.8,3675.9,0.09450795]
[1736139963707,0.625,3676.9,3676.2,2.60103866]
[1736139963944,0.625,3676.9,3676.4,0.7885]
[1736139964124,0.625,3676.9,3676.5,0.02719457]
[1736139964326,0.625,3676.9,3676.6,35.7885]
[1736139964774,0.625,3676.9,3676.7,0.09385064]
[1736139968028,0.625,3676.9,3676.8,9.35121866]
[1736139968234,0.625,3676.9,3676.8,43.80121866]
[1736139968436,0.625,3676.9,3676.8,43.89483357]
[1736139968630,0.1788871,3678.1,3676.9,3.0]
[1736139968961,0.1788871,3678.1,3677.7,2.44715]
[1736139969121,0.1788871,3678.1,3677.8,0.244715]
[1736139969322,0.1788871,3678.1,3677.9,35.0900712]
[1736139970149,0.1788871,3678.1,3678.0,0.7966]
[1736139970524,0.1788871,3678.1,3678.0,0.88628472]
[1736139971162,0.1788871,3678.1,3678.0,0.08968472]
[1736139971323,3.58982576,3678.1,3678.0,0.08968472]
[1736139971654,2.44713,3677.8,3677.2,0.7966]
[1736139971820,4.19399334,3678.1,3676.4,0.7966]
[1736139972023,2.44717,3677.8,3677.3,0.08894195]
[1736139972223,2.44717,3677.8,3677.1,0.7966]
[1736139972663,7.18815489,3678.1,3677.2,0.08897935]
[1736139973326,6.03677576,3678.1,3677.2,0.08897935]
[1736139973566,2.44699,3678.0,3677.2,0.08897935]
[1736139974634,2.44706,3677.9,3677.2,0.08897935]
[1736139975669,2.60103866,3677.8,3677.2,0.08897935]
[1736139975965,0.26010387,3677.7,3677.2,0.08897935]
[1736139976127,2.60103866,3677.8,3677.2,0.08897935]
[1736139976321,2.60103866,3677.8,3676.8,0.7966]
[1736139976521,2.60103866,3677.8,3676.9,0.08909156]
[1736139977524,2.44732,3677.5,3676.9,0.08909156]
[1736139978834,0.7921,3677.4,3676.9,0.08909156]
[1736139979158,3.23948,3677.4,3676.9,0.08909156]
[1736139979337,3.23948,3677.4,3677.0,35.0]
[1736139979533,3.23948,3677.4,3677.1,0.08926668]
[1736139979757,3.23929,3677.7,3677.1,0.08926668]
[1736139981024,1.09068742,3677.7,3677.1,0.08926668]
[1736139981464,2.44732,3677.5,3677.1,0.08926668]
[1736139981671,2.44724,3677.6,3677.1,0.08926668]
[1736139981873,2.44742,3677.4,3677.1,0.08926668]
[1736139982029,2.44747,3677.3,3677.1,0.08926668]
[1736139982360,2.95239087,3677.2,3676.5,0.7845]
[1736139982658,0.7921,3677.1,3675.7,0.7845]
[1736139982863,2.44774,3676.9,3676.6,0.08970365]
[1736139983166,2.44774,3676.9,3675.7,3.7845]
[1736139983548,0.7921,3677.1,3675.8,0.08711064]
[1736139983549,2.44799,3676.5,3675.8,0.08711064]
[1736139983755,3.24009,3676.5,3675.8,0.08711064]
[1736139983952,3.24009,3676.5,3675.7,0.7845]
[1736139984153,3.24009,3676.5,3675.9,0.08729401]
[1736139984447,3.23994,3676.8,3675.8,0.08733144]
[1736139984649,0.7921,3676.8,3675.9,0.33203614]
[1736139984861,2.44773,3676.9,3676.0,0.7845]
[1736139985235,2.44773,3676.9,3676.1,0.08721917]
[1736139986059,3.39313866,3677.2,3676.1,0.08721917]
[1736139986264,2.44759,3677.1,3676.1,0.11441294]
[1736139986433,2.44759,3677.1,3676.1,0.02719377]
[1736139986630,2.44743,3677.4,3676.3,0.7845]
[1736139986830,2.44744,3677.3,3676.4,0.02719155]
[1736139987143,2.44744,3677.3,3676.5,0.0870695]
[1736139987766,2.44744,3677.3,3676.6,0.08703209]
[1736139988252,2.44744,3677.3,3676.3,0.7845]
[1736139988458,2.44744,3677.3,3676.9,0.2488]
[1736139988631,3.04359787,3677.3,3676.9,0.2488]
[1736139989058,2.44752,3677.2,3676.9,0.2488]
[1736139989624,2.60103866,3677.2,3676.9,0.2488]
[1736139989832,3.20024,3677.0,3676.9,0.2488]
[1736139990369,2.44764,3677.0,3676.9,0.2488]
[1736139990765,3.08738365,3677.0,3676.9,0.2488]
[1736139991742,4.41538365,3677.0,3676.9,0.2488]
[1736139992254,3.86538365,3677.0,3676.9,0.2488]
[1736139993729,3.08738365,3677.0,3676.9,0.2488]
[1736139993934,2.44764,3677.0,3676.9,0.2488]
[1736139995074,2.60103866,3677.2,3676.9,0.2488]
[1736139995770,2.44751,3677.2,3676.9,0.2488]
[1736140001560,2.99738,3677.4,3676.9,0.2488]
[1736140001762,2.44764,3677.0,3676.9,0.2488]
[1736140001960,3.80964,3677.0,3676.9,0.2488]
[1736140002186,4.69545687,3677.0,3676.9,0.2488]
[1736140005190,5.23596061,3677.0,3676.9,0.2488]
[1736140006689,6.37607404,3677.0,3676.9,0.2488]
[1736140012096,5.23596061,3677.0,3676.9,0.2488]
[1736140014008,5.35496061,3677.0,3676.9,0.2488]
[1736140015710,2.44825,3676.1,3675.6,0.7617]
[1736140016007,5.04928866,3676.1,3675.7,0.08231401]
[1736140016215,2.44838,3675.9,3675.7,0.08231401]
[1736140016507,2.44838,3675.9,3675.3,0.7617]
[1736140017007,2.44838,3675.9,3675.4,0.07972991]
[1736140017579,2.44839,3675.9,3675.4,0.07972991]
[1736140018108,2.44839,3675.9,3675.3,0.7617]
[1736140018470,2.44839,3675.9,3675.4,0.07972991]
[1736140020513,3.58550105,3676.4,3675.5,0.8168]
[1736140020514,2.44822,3676.2,3675.5,0.8168]
[1736140020912,0.53826607,3676.3,3675.6,0.07965504]
[1736140021120,5.04927866,3676.1,3675.6,0.07965504]
[1736140021429,5.04927866,3676.1,3675.7,0.07984921]
[1736140021815,5.04927866,3676.1,3675.5,0.8168]
[1736140022617,1.13741105,3676.4,3675.6,0.02720613]
[1736140022932,1.13741105,3676.4,3675.7,0.8141]
[1736140023134,1.13741105,3676.4,3675.9,0.8141]
[1736140023619,1.13741105,3676.4,3676.1,0.8141]
[1736140023822,1.26272235,3677.0,3676.1,0.8141]
[1736140024113,1.26272235,3677.0,3676.2,0.89361626]
[1736140024883,0.1253113,3677.0,3676.2,0.89361626]
[1736140025091,0.1253113,3677.0,3676.3,0.33418263]
[1736140025295,0.1253113,3677.0,3676.4,0.8141]
[1736140025675,0.1253113,3677.0,3676.6,0.8141]
[1736140026818,0.1253113,3677.0,3676.7,0.07897759]
[1736140033320,2.5729613,3677.0,3676.7,0.07897759]
[1736140033536,0.5174,3676.9,3676.7,0.07897759]
[1736140033761,2.5729613,3677.0,3676.6,0.8141]
[1736140033762,0.1253113,3677.0,3676.6,0.8141]
[1736140034140,0.1253113,3677.0,3676.7,35.07868602]
[1736140035157,0.1253113,3677.0,3676.7,0.07868602]
[1736140038473,2.5729513,3677.0,3676.7,0.07868602]
[1736140038667,2.44778,3676.8,3676.7,0.07868602]
[1736140039571,0.7209803,3677.0,3676.7,0.07868602]
[1736140039773,3.1686503,3677.0,3676.7,0.07868602]
[1736140040861,0.1253113,3677.0,3676.7,0.07868602]
[1736140043918,0.1253113,3677.0,3676.8,0.8118]
[1736140044265,0.1253113,3677.0,3676.9,0.07873127]
[1736140048569,0.1253113,3677.0,3676.9,35.86893127]
[1736140048753,0.1253113,3677.0,3676.9,35.7902]
[1736140048954,0.1253113,3677.0,3676.9,41.31659412]
[1736140050732,0.1253113,3677.0,3676.9,43.66935438]
[1736140051226,2.59776526,3678.2,3677.1,0.7891]
[1736140051580,2.44679,3678.3,3677.1,2.44757]
[1736140051873,2.44679,3678.3,3677.2,0.8948372]
[1736140052077,2.44679,3678.3,3677.3,0.63424072]
[1736140052425,0.005,3678.4,3677.6,0.7891]
[1736140052746,0.005,3678.4,3677.7,35.0]
[1736140053078,0.005,3678.4,3677.7,35.07774629]
[1736140053963,0.005,3678.4,3677.8,0.7891]
[1736140054190,0.005,3678.4,3677.9,0.31855744]
[1736140054329,0.005,3678.4,3677.9,0.39622896]
[1736140054535,0.005,3678.4,3678.0,35.0]
[1736140054837,0.005,3678.4,3678.1,0.07750248]
[1736140055367,0.005,3678.4,3678.2,0.7676]
[1736140055756,0.005,3678.4,3678.3,0.07742773]
[1736140057000,2.45171,3678.4,3678.3,0.07742773]
[1736140057298,1.052871,3678.4,3677.6,0.7676]
[1736140057450,1.052871,3678.4,3678.3,0.07742773]
[1736140057653,3.499581,3678.4,3677.4,0.7676]
[1736140057847,2.44709,3677.9,3677.4,0.7676]
[1736140058044,3.23501,3678.1,3677.1,0.805]
[1736140058300,2.44718,3677.8,3677.1,0.805]
[1736140058661,2.44719,3677.7,3677.1,0.805]
[1736140060148,2.44707,3677.9,3677.1,0.805]
[1736140060655,2.44707,3677.9,3677.2,35.0]
[1736140061064,2.44691,3678.1,3677.2,35.0]
[1736140061278,2.44691,3678.1,3677.4,0.805]
[1736140061784,0.005,3678.4,3677.4,0.805]
[1736140062395,0.005,3678.4,3677.6,0.8219]
[1736140062556,0.005,3678.4,3677.7,0.01704478]
[1736140062903,0.005,3678.4,3677.7,0.34567526]
[1736140063602,0.005,3678.4,3677.7,0.35581486]
[1736140064290,0.005,3678.4,3677.7,0.32863048]
[1736140064654,0.005,3678.4,3677.8,0.819]
[1736140064852,0.005,3678.4,3677.9,35.0]
[1736140065175,0.005,3678.4,3677.9,35.62416768]
[1736140065486,0.8029,3678.4,3677.8,0.819]
[1736140065692,0.8029,3678.4,3678.0,0.07265483]
[1736140065888,0.8029,3678.4,3677.8,35.819]
[1736140066185,0.005,3678.4,3678.1,0.07261745]
[1736140066391,0.005,3678.4,3677.8,0.819]
[1736140066690,0.005,3678.4,3677.8,35.819]
[1736140066892,0.005,3678.4,3677.9,0.07269221]
[1736140068267,0.005,3678.4,3678.0,0.8183]
[1736140068472,0.005,3678.4,3678.0,0.89095483]
[1736140070164,0.005,3678.4,3678.0,0.07265483]
[1736140070366,2.45173,3678.4,3678.0,0.07265483]
[1736140070599,2.45173,3678.4,3677.8,0.7597]
[1736140070781,2.45173,3678.4,3678.1,0.07245488]
[1736140070983,2.45173,3678.4,3677.8,0.7597]
[1736140071208,2.45173,3678.4,3678.2,0.0724175]
[1736140071415,2.45173,3678.4,3677.8,0.7597]
[1736140071698,2.45173,3678.4,3677.9,0.07252965]
[1736140072048,0.005,3678.4,3677.9,0.07252965]
[1736140072934,0.005,3678.4,3678.0,35.0]
[1736140073252,0.005,3678.4,3678.0,35.07249226]
[1736140073454,0.005,3678.4,3678.0,0.07249226]
[1736140073808,0.005,3678.4,3677.8,0.7597]
[1736140074014,0.005,3678.4,3678.1,0.07245488]
[1736140074208,0.005,3678.4,3677.9,35.0]
[1736140074414,0.005,3678.4,3678.2,0.0724175]
[1736140074613,0.005,3678.4,3677.9,35.0]
[1736140075049,0.005,3678.4,3678.0,0.07249226]
[1736140077799,0.005,3678.4,3678.1,35.0]
[1736140077998,0.005,3678.4,3678.1,35.07245488]
[1736140081371,0.005,3678.4,3678.1,0.07245488]
[1736140081702,0.005,3678.4,3677.8,0.7597]
[1736140081902,0.005,3678.4,3678.2,0.07205819]
[1736140082136,0.005,3678.4,3677.8,0.7597]
[1736140082319,0.005,3678.4,3678.3,0.07196094]
[1736140082651,0.005,3678.4,3677.9,0.32215398]
[1736140082823,0.005,3678.4,3678.3,0.07196094]
[1736140083014,0.005,3678.4,3677.9,0.32215398]
[1736140083214,0.005,3678.4,3678.3,0.07196094]
[1736140083455,0.005,3678.4,3677.9,0.32215398]
[1736140083614,0.005,3678.4,3678.3,0.07196094]
[1736140083822,0.005,3678.4,3678.0,0.3553912]
[1736140084648,0.005,3678.4,3678.1,0.7978]
[1736140084858,0.005,3678.4,3678.1,0.8698357]
[1736140085509,0.005,3678.4,3678.1,0.0720357]
[1736140085855,0.005,3678.4,3677.7,0.822]
[1736140086293,0.7688,3678.3,3677.8,0.07214785]
[1736140086611,2.45171,3678.4,3677.7,0.822]
[1736140086909,2.45171,3678.4,3677.8,0.07214785]
[1736140087352,0.005,3678.4,3677.8,0.07214785]
[1736140088661,2.45172,3678.4,3677.8,0.07214785]
[1736140089368,0.7778,3678.3,3677.8,0.07214785]
[1736140089513,0.7778,3678.3,3677.5,3.0]
[1736140089709,0.7778,3678.3,3677.9,0.07215753]
[1736140089710,3.22459,3678.3,3677.9,0.07215753]
[1736140089917,2.44692,3678.1,3677.4,2.54612124]
[1736140090159,2.44692,3678.1,3678.0,0.07212014]
[1736140090369,2.44692,3678.1,3677.2,1.13630868]
[1736140090527,2.44692,3678.1,3678.0,0.07212014]
[1736140090726,3.02999587,3678.1,3677.2,1.13630868]
[1736140090923,2.44713,3677.8,3677.2,1.13630868]
[1736140091551,2.4472,3677.7,3677.2,1.13630868]
[1736140091876,2.4472,3677.7,3677.2,0.9417919]
[1736140092372,0.8307,3677.6,3677.2,0.9417919]
[1736140092958,0.8307,3677.6,3676.9,0.9417919]
[1736140093637,3.27796,3677.6,3676.9,0.9417919]
[1736140094031,3.37903866,3677.9,3676.9,0.9417919]
[1736140094348,0.778,3677.9,3676.9,0.9417919]
[1736140094531,2.44715,3677.8,3677.0,0.9417919]
[1736140094731,2.44726,3677.6,3677.0,0.9417919]
[1736140094919,0.7819,3677.5,3677.0,0.9417919]
[1736140095885,0.7819,3677.5,3676.9,0.9417919]
[1736140096033,0.7819,3677.5,3677.1,0.07245667]
[1736140096416,0.7819,3677.5,3676.9,0.9417919]
[1736140096653,1.96471105,3677.9,3677.2,0.07241927]
[1736140096851,1.96471105,3677.9,3677.0,0.42680884]
[1736140097117,0.8273,3677.9,3677.0,0.42680884]
[1736140097366,0.8273,3677.9,3677.1,0.07245667]
[1736140098573,0.8273,3677.9,3677.1,1.01500631]
[1736140098720,0.8273,3677.9,3677.1,1.54099563]
[1736140099076,2.44711,3677.8,3677.1,1.01500631]
[1736140099222,2.44719,3677.7,3677.1,1.01500631]
[1736140099853,2.44719,3677.7,3677.1,0.07245667]
[1736140100184,2.44719,3677.7,3676.9,2.54899653]
[1736140100388,2.44719,3677.7,3677.2,0.07258607]
[1736140100519,2.44719,3677.7,3676.9,2.54899653]
[1736140100719,2.44719,3677.7,3677.3,0.07254867]
[1736140100920,2.44719,3677.7,3676.9,3.05207249]
[1736140101123,2.44719,3677.7,3677.4,0.07251127]
[1736140101362,2.44719,3677.7,3676.9,0.50307596]
[1736140101521,2.44719,3677.7,3677.5,0.07247388]
[1736140101721,2.44719,3677.7,3676.8,1.71977314]
[1736140101918,2.44719,3677.7,3677.6,0.07243649]
[1736140102171,2.44719,3677.7,3676.8,1.71977314]
[1736140102386,2.44719,3677.7,3677.6,0.07243649]
[1736140102670,2.44719,3677.7,3676.8,0.7773]
[1736140102972,2.44719,3677.7,3676.9,0.07269827]
[1736140103166,2.44719,3677.7,3676.9,0.41259775]
[1736140104480,3.42833866,3677.9,3676.9,0.41259775]
[1736140104777,3.42833866,3677.9,3676.9,0.07269827]
[1736140105073,0.8273,3677.9,3676.9,0.07269827]
[1736140105283,2.44721,3677.7,3676.9,0.07269827]
[1736140105881,0.8273,3677.9,3676.9,0.07269827]
[1736140106074,0.7994,3677.4,3676.9,0.07269827]
[1736140106235,0.7994,3677.4,3676.5,3.37799653]
[1736140106442,0.7994,3677.4,3677.0,0.07266087]
[1736140106749,0.7994,3677.4,3677.1,0.07262347]
[1736140106955,2.44746,3677.3,3676.5,1.96530868]
[1736140107171,0.7994,3677.4,3677.2,0.07258607]
[1736140107340,3.24679,3677.4,3676.5,1.96530868]
[1736140107700,3.24679,3677.4,3677.3,0.07254867]
[1736140107858,3.24679,3677.4,3676.5,1.96530868]
[1736140108052,3.24679,3677.4,3676.6,0.9419347]
[1736140108272,0.7994,3677.4,3676.6,1.0147452]
[1736140108470,2.44745,3677.3,3676.6,1.0147452]
[1736140109258,2.44745,3677.3,3676.6,0.0728105]
[1736140111973,2.44761,3677.1,3676.6,0.0728105]
[1736140112173,2.4476,3677.1,3676.6,0.0728105]
[1736140112377,0.7758,3677.0,3676.6,0.0728105]
[1736140113792,0.7758,3677.0,3676.2,0.7949]
[1736140114097,0.7758,3677.0,3676.2,1.12928965]
[1736140114290,2.44772,3676.9,3676.3,0.07364575]
[1736140114489,0.7758,3677.0,3676.3,0.07364575]
[1736140114797,2.44771,3676.9,3676.3,0.07364575]
[1736140115910,2.60103866,3677.4,3676.3,0.07364575]
[1736140116114,2.44722,3677.7,3676.6,2.44788]
[1736140116115,1.13741105,3677.5,3676.6,2.44788]
[1736140116419,1.13741105,3677.5,3676.7,1.039688]
[1736140116560,1.13741105,3677.5,3676.7,1.11325685]
[1736140117274,1.13741105,3677.5,3676.8,0.7949]
[1736140117603,0.7758,3677.9,3676.9,0.86839404]
[1736140117786,0.7758,3677.9,3677.0,0.3457552]
[1736140117963,0.7758,3677.9,3677.0,0.41921183]
[1736140120405,2.60103866,3678.2,3677.1,0.7532]
[1736140120740,2.60103866,3678.2,3677.2,0.07338183]
[1736140121552,2.44698,3678.0,3677.2,0.07338183]
[1736140122834,2.60103866,3678.2,3677.3,0.7532]
[1736140123036,2.60103866,3678.2,3677.3,0.82633053]
[1736140123700,2.44679,3678.3,3677.3,0.82633053]
[1736140127028,2.44679,3678.3,3677.3,0.85218632]
[1736140127256,0.005,3678.4,3677.3,0.85218632]
[1736140127455,0.005,3678.4,3677.4,0.36515973]
[1736140127618,2.45173,3678.4,3677.5,0.7509]
[1736140127839,2.45173,3678.4,3677.5,0.82349365]
[1736140134685,2.44688,3678.2,3677.5,0.82349365]
[1736140134871,0.245188,3678.1,3677.5,0.82349365]
[1736140135478,2.692098,3678.1,3677.5,0.82349365]
[1736140136237,0.8297,3678.0,3677.5,0.07259365]
[1736140136532,0.8297,3678.0,3677.2,3.758]
[1736140136676,3.27668,3678.0,3677.6,0.07244076]
[1736140136879,0.61229067,3677.9,3677.2,0.758]
[1736140137080,0.61229067,3677.9,3677.3,1.48196332]
[1736140138118,0.61229067,3677.9,3677.3,0.07255294]
[1736140138619,3.27668,3678.0,3677.3,0.07255294]
[1736140139025,1.17242296,3677.9,3677.2,0.758]
[1736140139387,1.17242296,3677.9,3677.3,0.07255294]
[1736140141321,3.61947296,3677.9,3677.3,0.07255294]
[1736140143642,1.17242296,3677.7,3677.3,0.07255294]
[1736140143791,1.61734026,3677.7,3677.3,0.07255294]
[1736140143991,3.20996,3677.3,3677.1,1.40941038]
[1736140144195,3.61993296,3677.2,3677.1,1.40941038]
[1736140144999,1.17242296,3677.2,3677.1,1.40941038]
[1736140145199,3.61980296,3677.4,3677.1,1.40941038]
[1736140145410,3.61980296,3677.4,3676.6,0.8187]
[1736140145710,1.17242296,3677.2,3676.6,0.8187]
[1736140147165,2.92803302,3677.4,3676.6,0.8187]
[1736140148446,0.48065302,3677.4,3676.6,0.8187]
[1736140148663,3.35384706,3677.6,3676.6,0.8187]
[1736140149886,3.35384706,3677.6,3676.7,0.94090704]
[1736140150528,2.44738,3677.4,3676.7,0.94090704]
[1736140150721,2.44738,3677.4,3676.6,0.8187]
[1736140151971,3.35384706,3677.6,3676.6,35.8187]
[1736140152261,2.4475,3677.3,3676.6,0.8187]
[1736140155364,0.50265481,3677.5,3676.6,0.8187]
[1736140155759,2.94999481,3677.5,3676.7,0.07102463]
[1736140156067,0.50265481,3677.5,3676.7,0.07102463]
[1736140156269,2.44746,3677.3,3676.7,0.07102463]
[1736140156566,3.07785619,3677.3,3676.7,0.07102463]
[1736140157674,0.63039619,3677.3,3676.7,0.07102463]
[1736140157899,2.44752,3677.2,3676.7,0.07102463]
[1736140158076,2.59894706,3677.0,3676.7,0.07102463]
[1736140158371,0.7597,3676.8,3676.2,1.13630868]
[1736140158539,0.7597,3676.8,3675.9,2.27726106]
[1736140158540,2.44798,3676.5,3676.1,1.13630868]
[1736140159881,0.7597,3676.8,3676.1,1.13630868]
[1736140160182,0.7597,3676.8,3675.8,0.7906]
[1736140160484,3.75924187,3676.8,3675.8,0.7906]
[1736140160673,0.78714947,3676.7,3675.8,0.80532621]
[1736140161284,0.78714947,3676.7,3675.8,0.7906]
[1736140161587,3.23499947,3676.7,3675.8,0.7906]
[1736140162184,2.44806,3676.4,3675.8,0.7906]
[1736140163046,2.44822,3676.2,3675.6,0.7591]
[1736140163246,0.58464671,3676.1,3675.6,0.7591]
[1736140164245,0.58464671,3676.1,3675.2,2.54885561]
[1736140164446,3.03289671,3676.1,3675.3,0.8292]
[1736140168166,2.4484,3675.9,3675.3,0.8292]
[1736140168567,2.44845,3675.8,3675.4,35.0]
[1736140168761,3.50685967,3675.8,3675.4,35.0]
[1736140169077,3.50685967,3675.8,3675.3,0.8292]
[1736140169791,3.50685967,3675.8,3675.4,0.0696892]
[1736140169988,1.05840967,3675.8,3675.4,0.0696892]
[1736140170195,2.44851,3675.7,3675.4,0.0696892]
[1736140170368,3.05909667,3675.7,3675.4,0.0696892]
[1736140171578,0.61058667,3675.7,3675.4,0.0696892]
[1736140171884,2.44819,3676.2,3675.5,0.8246]
[1736140172282,2.44819,3676.2,3675.6,0.07053623]
[1736140172678,0.8073,3676.4,3675.6,0.07053623]
[1736140172910,1.13741105,3676.8,3675.7,0.8246]
[1736140173102,3.73635811,3677.0,3675.8,0.8246]
[1736140173418,3.73635811,3677.0,3676.0,0.8246]
[1736140174054,2.59894706,3677.0,3676.1,0.0703491]
[1736140174255,2.59894706,3677.0,3676.1,35.0703491]
[1736140174461,5.04658706,3677.0,3676.1,35.0703491]
[1736140175203,2.44773,3676.9,3676.1,35.0703491]
[1736140175494,2.44781,3676.8,3676.1,35.0703491]
[1736140176187,2.44799,3676.5,3676.1,0.0703491]
[1736140176512,2.44799,3676.5,3676.0,0.8246]
[1736140176814,2.44799,3676.5,3676.1,0.0703491]
[1736140177172,0.244799,3676.5,3676.1,0.0703491]
[1736140177385,0.997199,3676.5,3676.1,0.0703491]
[1736140177585,0.997199,3676.5,3675.7,0.7687]
[1736140177787,2.59894706,3676.4,3676.2,0.07031168]
[1736140178000,2.44851,3675.8,3675.4,0.7687]
[1736140178199,2.59894706,3676.0,3675.4,0.7687]
[1736140178382,2.44841,3675.9,3675.4,0.7687]
[1736140178987,0.57995271,3676.0,3674.8,35.0]
[1736140179203,2.44825,3676.1,3674.9,3.0]
[1736140179407,2.44825,3676.1,3674.9,5.44902]
[1736140182103,2.44825,3676.1,3675.0,0.0995]
[1736140182402,3.24421,3676.3,3675.1,0.0995]
[1736140182702,0.7961,3676.3,3675.2,35.0]
[1736140182999,2.44826,3676.1,3675.2,35.0]
[1736140185627,2.44826,3676.1,3675.3,0.0705162]
[1736140186003,2.44826,3676.1,3675.1,0.0995]
[1736140186205,2.44826,3676.1,3675.4,0.07047877]
[1736140186407,2.44826,3676.1,3675.2,35.0]
[1736140186725,2.44826,3676.1,3675.5,0.07045841]
[1736140186893,3.07450722,3676.1,3675.2,35.0]
[1736140187088,3.07450722,3676.1,3675.6,0.07042098]
[1736140187300,3.07450722,3676.1,3675.2,35.0]
[1736140187501,3.07450722,3676.1,3675.7,0.07038355]
[1736140187730,3.07450722,3676.1,3675.2,35.0]
[1736140188094,3.07450722,3676.1,3675.3,0.07053328]
[1736140189703,3.07450722,3676.1,3675.1,0.0995]
[1736140190037,3.07450722,3676.1,3675.2,35.07057072]
[1736140191920,3.07450722,3676.1,3675.3,0.0995]
[1736140192114,3.07450722,3676.1,3675.4,0.07047023]
[1736140192655,3.07450722,3676.1,3675.4,35.07047023]
[1736140194118,3.07450722,3676.1,3675.4,0.07047023]
[1736140194318,0.42897723,3676.0,3675.4,0.07047023]
[1736140194857,0.42897723,3676.0,3675.4,35.07047023]
[1736140195065,3.07450722,3676.1,3675.4,35.07047023]
[1736140197664,3.07450722,3676.1,3675.4,0.07047023]
[1736140200828,2.44826,3676.1,3675.4,0.07047023]
[1736140203745,1.1735438,3675.6,3675.4,0.07047023]
[1736140204064,2.44884,3675.2,3675.1,1.13789417]
[1736140204272,3.6223838,3675.2,3675.1,1.13789417]
[1736140204473,4.30925618,3675.2,3675.1,1.13789417]
[1736140204769,1.86041618,3675.2,3674.8,1.41506682]
[1736140204933,2.44904,3674.9,3674.8,1.41506682]
[1736140205953,2.44904,3674.9,3674.6,1.13789417]
[1736140205954,2.44906,3674.9,3674.3,0.0995]
[1736140207477,1.13741105,3675.3,3674.4,0.0995]
[1736140207631,1.13741105,3675.3,3674.5,0.27017279]
[1736140207975,1.13741105,3675.5,3675.1,35.0]
[1736140208266,1.13741105,3675.5,3675.2,0.0995]
[1736140209273,2.56536,3676.0,3675.2,0.0995]
[1736140209481,3.50080787,3676.0,3675.2,0.0995]
[1736140210106,0.117,3676.0,3675.2,0.0995]
[1736140210739,1.13741105,3676.2,3675.2,0.0995]
[1736140210943,1.13741105,3676.2,3675.4,0.0995]
[1736140211145,1.13741105,3676.2,3675.4,2.5482]
[1736140211382,1.13741105,3676.2,3675.5,35.0]
[1736140211765,1.13741105,3676.4,3675.6,2.54806]
[1736140212387,1.13741105,3676.4,3675.7,35.0]
[1736140212848,2.44779,3676.8,3675.8,0.0995]
[1736140213185,1.13741105,3676.9,3675.8,0.02720137]
[1736140213359,1.13741105,3676.9,3675.9,0.0995]
[1736140214684,3.58508105,3677.0,3676.1,1.0]
[1736140215475,2.44767,3677.0,3676.1,1.0]
[1736140215680,2.44767,3677.0,3676.2,0.06338931]
[1736140216249,2.44778,3676.8,3676.2,0.06338931]
[1736140216454,0.244778,3676.7,3676.2,0.06338931]
[1736140216655,2.692638,3676.7,3676.2,0.06338931]
[1736140217181,3.454138,3676.7,3676.2,0.06338931]
[1736140218867,2.692638,3676.7,3676.2,0.06338931]
[1736140219086,0.244778,3676.7,3676.2,0.06338931]
[1736140222398,1.13741105,3677.0,3676.3,0.0995]
[1736140222605,3.58506105,3677.0,3676.3,0.0995]
[1736140222801,3.58506105,3677.0,3676.4,0.06241774]
[1736140223008,3.58506105,3677.0,3676.3,0.0995]
[1736140223304,0.7976,3676.9,3676.5,0.06238032]
[1736140223493,2.44791,3676.6,3676.4,0.06241774]
[1736140223707,2.44791,3676.6,3676.1,1.0]
[1736140224060,2.44791,3676.6,3676.2,0.06249257]
[1736140225035,2.9015039,3676.8,3676.2,0.06249257]
[1736140225168,0.74387429,3676.7,3676.2,0.06249257]
[1736140227813,0.4537239,3676.8,3676.2,0.06249257]
[1736140227983,2.44764,3677.1,3676.3,0.0995]
[1736140228181,2.44764,3677.1,3676.4,0.06242197]
[1736140228384,2.44764,3677.1,3676.3,0.0995]
[1736140228774,2.44764,3677.1,3676.4,0.06242197]
[1736140229104,0.7697,3677.2,3676.3,0.0995]
[1736140229324,2.44767,3677.0,3676.3,0.0995]
[1736140231220,3.21721,3677.2,3676.3,0.0995]
[1736140232092,2.44758,3677.1,3676.3,0.0995]
[1736140233327,2.44765,3677.0,3676.3,0.0995]
[1736140235181,2.60222792,3677.1,3676.3,0.0995]
[1736140235528,0.26022279,3677.0,3676.4,0.09053393]
[1736140236023,2.70787279,3677.0,3676.3,0.0995]
[1736140236195,2.70787279,3677.0,3676.5,0.09049575]
[1736140236394,2.70787279,3677.0,3676.3,0.0995]
[1736140236719,4.56053897,3677.4,3676.3,0.0995]
[1736140236720,3.42312792,3677.4,3676.4,0.09053393]
[1736140237431,2.44752,3677.2,3676.4,0.09053393]
[1736140240806,3.42312792,3677.4,3676.4,0.09053393]
[1736140241008,2.44773,3676.9,3676.4,0.09053393]
[1736140241211,2.95272579,3676.9,3676.3,0.0995]
[1736140241537,2.95272579,3676.9,3676.5,0.09049575]
[1736140241699,2.95272579,3676.9,3676.4,0.09053393]
[1736140242016,2.95272579,3676.9,3676.3,0.0995]
[1736140242221,2.95272579,3676.9,3676.5,0.09053832]
[1736140242409,2.95272579,3676.9,3676.3,0.0995]
[1736140242616,2.44785,3676.7,3676.3,0.0995]
[1736140243130,2.44785,3676.7,3676.4,0.0905765]
[1736140243532,2.44785,3676.7,3676.0,0.0995]